bitfinex/quotes_ETHUSD_20251017
["timestamp","ask_amount","ask_price","bid_price","bid_amount"]
[1760722663749,13.6531258,3819.1,3818.6,0.001]
[1760722663750,1.72904115,3819.0,3818.6,0.001]
[1760722663948,7.78854573,3818.4,3818.2,0.001]
[1760722664162,9.07110563,3818.3,3818.2,0.001]
[1760722664351,9.504637,3818.3,3818.2,0.001]
[1760722664519,7.973956,3818.3,3818.2,0.001]
[1760722664720,6.25618292,3818.3,3818.2,0.001]
[1760722665021,5.33907421,3818.3,3818.2,0.001]
[1760722665348,2.85268221,3818.3,3818.2,0.001]
[1760722665523,11.54682992,3818.3,3818.2,0.001]
[1760722665849,2.22706392,3818.3,3818.2,0.001]
[1760722666645,2.63792238,3818.3,3818.2,0.001]
[1760722667021,5.25027338,3818.3,3818.2,0.001]
[1760722667221,12.08048638,3818.3,3818.2,0.001]
[1760722667428,9.88615702,3818.3,3818.2,0.001]
[1760722667652,9.81169402,3818.3,3818.2,0.001]
[1760722667853,13.08233602,3818.3,3818.2,0.001]
[1760722668075,5.39198502,3818.3,3818.2,0.001]
[1760722668253,4.58436538,3818.3,3818.2,0.001]
[1760722668454,3.10131438,3818.3,3818.2,0.001]
[1760722668774,0.45652238,3818.3,3818.2,0.001]
[1760722669151,0.90992238,3818.3,3818.2,0.001]
[1760722669574,0.45652238,3818.3,3818.2,0.001]
[1760722669772,0.45652238,3818.3,3818.2,2.62003514]
[1760722670880,0.04566392,3818.3,3818.2,3.14395381]
[1760722671271,0.6827,3819.3,3818.2,0.52491867]
[1760722671448,0.0456473,3818.8,3818.7,2.61869222]
[1760722672378,0.0456473,3818.8,3818.6,2.61869391]
[1760722672570,0.0456473,3818.8,3818.7,2.61869222]
[1760722672773,0.0456473,3818.8,3818.2,0.001]
[1760722673160,0.4747,3818.7,3818.2,0.001]
[1760722673362,0.0456473,3818.8,3818.2,0.001]
[1760722673563,0.4747,3818.6,3818.2,0.001]
[1760722674078,0.4747,3818.5,3818.2,0.001]
[1760722674281,0.96878883,3818.5,3818.2,0.001]
[1760722674486,0.4747,3818.4,3818.2,0.001]
[1760722675178,0.52035444,3818.4,3818.2,0.001]
[1760722675980,0.4747,3818.3,3818.2,0.001]
[1760722676285,10.23749063,3818.3,3818.2,0.001]
[1760722676479,9.574252,3818.3,3818.2,0.001]
[1760722676664,4.369292,3818.3,3818.2,0.001]
[1760722677372,2.2027,3818.3,3818.2,0.001]
[1760722677570,5.392394,3818.3,3818.2,0.001]
[1760722677878,2.2027,3818.3,3818.2,0.001]
[1760722678082,2.48848641,3818.3,3818.2,0.001]
[1760722678259,4.98088841,3818.3,3818.2,0.001]
[1760722678459,1.728,3818.3,3818.2,0.001]
[1760722679085,0.04565444,3818.4,3818.3,2.61896655]
[1760722680703,0.002,3818.8,3818.7,2.61869222]
[1760722681002,0.002,3818.8,3818.7,2.64487914]
[1760722681178,0.002,3818.8,3818.7,2.77657914]
[1760722681366,0.002,3818.8,3818.7,3.30307513]
[1760722681719,0.002,3818.8,3818.2,0.001]
[1760722681907,0.002,3818.8,3818.2,2.62001076]
[1760722682059,0.4739,3818.8,3818.4,2.61888772]
[1760722682387,0.53741562,3818.7,3818.2,0.001]
[1760722682587,0.51754699,3818.7,3818.2,0.001]
[1760722682894,0.04564699,3818.7,3818.2,0.001]
[1760722683093,0.04564699,3818.7,3818.4,2.61889004]
[1760722683256,0.04564699,3818.7,3818.6,2.6187608]
[1760722683457,0.04564699,3818.7,3818.2,0.001]
[1760722683657,0.04564699,3818.7,3818.6,2.6187608]
[1760722684095,0.51754699,3818.7,3818.2,0.001]
[1760722684295,0.04564699,3818.7,3818.6,2.6187608]
[1760722684573,0.04564699,3818.7,3818.2,2.62003148]
[1760722684783,0.04564699,3818.7,3818.2,0.001]
[1760722684956,0.04564699,3818.7,3818.6,2.6187608]
[1760722686793,0.04564699,3818.7,3818.3,2.61896655]
[1760722686999,0.51754699,3818.7,3818.2,0.001]
[1760722687175,0.04564699,3818.7,3818.6,2.6187608]
[1760722687878,0.04564699,3818.7,3818.6,3.14514376]
[1760722688078,0.04564699,3818.7,3818.6,3.14644376]
[1760722688677,0.002,3818.8,3818.7,2.61869222]
[1760722688871,0.002,3818.8,3818.7,2.61999222]
[1760722689903,0.04563935,3820.0,3819.9,2.61786957]
[1760722690296,0.002,3820.2,3820.1,2.61773252]
[1760722690608,0.002,3820.2,3820.1,2.64390984]
[1760722690973,0.002,3820.2,3820.1,2.64520984]
[1760722691421,0.002,3820.2,3820.1,2.61903252]
[1760722691614,0.002,3820.2,3820.1,4.73831938]
[1760722691786,0.002,3820.2,3820.1,4.86871938]
[1760722692104,0.002,3820.2,3816.9,0.51989103]
[1760722692105,0.4739,3820.2,3818.5,0.0013]
[1760722692324,0.01986863,3820.1,3818.3,2.61896367]
[1760722692474,0.4719,3820.0,3818.9,2.61854418]
[1760722692675,4.012706,3819.8,3818.6,2.61871227]
[1760722692892,4.012706,3819.8,3818.1,0.001]
[1760722692893,0.94423746,3819.7,3818.1,2.62008555]
[1760722693109,0.01986863,3819.6,3818.6,2.61871595]
[1760722693331,0.2189,3818.7,3818.1,0.001]
[1760722693479,9.309277,3818.5,3817.8,0.001]
[1760722693683,15.085696,3817.8,3815.6,0.0033]
[1760722693904,1.728,3817.7,3815.1,0.0053]
[1760722694224,4.523262,3817.3,3815.1,2.62645823]
[1760722694373,0.4719,3817.2,3816.4,2.62025749]
[1760722694578,0.4719,3817.2,3816.3,0.02620339]
[1760722694803,0.4719,3817.2,3815.4,0.03150957]
[1760722695011,0.04566902,3817.0,3815.5,0.26262921]
[1760722695191,0.2189,3816.9,3816.4,2.62022765]
[1760722695399,0.4719,3816.8,3816.3,2.62032412]
[1760722695595,0.4719,3816.7,3816.4,2.62025349]
[1760722695796,0.2189,3816.9,3816.2,2.62039346]
[1760722696012,0.4719,3816.8,3814.9,0.0053]
[1760722696209,0.4719,3816.8,3816.1,2.62046048]
[1760722696396,0.4719,3816.8,3815.2,0.0053]
[1760722696599,0.2189,3817.2,3815.3,2.64723611]
[1760722696788,0.2189,3817.2,3815.4,0.0053]
[1760722696980,0.2189,3817.2,3815.6,2.62081979]
[1760722697176,0.41097142,3817.3,3816.9,2.6198687]
[1760722697379,0.41097142,3817.3,3815.7,0.0053]
[1760722697597,0.41097142,3817.3,3817.2,2.61972126]
[1760722697801,0.41097142,3817.3,3815.8,2.62068242]
[1760722697989,0.01986863,3817.2,3816.4,0.001]
[1760722698196,0.49176863,3817.2,3816.4,2.62126329]
[1760722698392,0.4719,3817.1,3816.4,0.001]
[1760722698707,0.49176863,3817.1,3816.4,0.001]
[1760722699082,0.4719,3817.1,3816.4,2.62125659]
[1760722699296,0.4719,3817.0,3816.4,0.001]
[1760722699614,0.47348996,3817.0,3816.4,0.001]
[1760722699928,1.728,3816.3,3815.6,0.001]
[1760722700212,0.2189,3815.7,3815.6,0.001]
[1760722700412,5.21666,3815.7,3815.6,0.001]
[1760722700579,5.68856,3815.7,3815.6,0.001]
[1760722700787,7.80065442,3815.7,3815.6,0.001]
[1760722700980,6.54439442,3815.7,3815.6,0.001]
[1760722701216,4.53089442,3815.7,3815.6,0.001]
[1760722701384,2.87564083,3815.7,3815.6,0.001]
[1760722701921,5.86199346,3815.7,3815.6,0.001]
[1760722702123,5.86199346,3815.7,3811.3,2.62374916]
[1760722702124,5.69351,3814.8,3813.6,2.62215919]
[1760722702416,0.2313,3814.7,3813.2,0.02622469]
[1760722702723,0.6728,3814.7,3814.1,2.62180013]
[1760722702886,0.04570479,3814.4,3814.3,2.62171302]
[1760722703085,0.4415,3815.3,3814.3,0.69788166]
[1760722703280,0.01986863,3815.2,3814.0,2.62191924]
[1760722703494,0.01986863,3815.2,3813.5,1.728]
[1760722703495,0.48719591,3815.3,3813.5,1.728]
[1760722703699,0.01986863,3815.2,3813.6,2.62219425]
[1760722703986,0.01986863,3815.2,3814.6,2.6214928]
[1760722704216,0.04569591,3815.3,3813.7,0.43574943]
[1760722704387,0.4415,3815.1,3813.8,0.02622056]
[1760722704588,0.04569591,3815.3,3813.9,0.02621987]
[1760722704924,0.6604,3815.7,3814.0,2.62191924]
[1760722705091,0.04569201,3815.0,3814.9,2.62130068]
[1760722705711,0.41115317,3816.4,3816.3,2.62033907]
[1760722706024,0.04568469,3816.6,3816.5,2.62020175]
[1760722706186,0.4415,3817.3,3815.4,2.62094994]
[1760722706385,0.41100485,3817.4,3817.3,2.61965263]
[1760722706621,0.41100485,3817.4,3817.2,2.61970476]
[1760722706921,0.41100485,3817.4,3817.1,2.61973363]
[1760722707123,0.41100485,3817.4,3815.6,0.0073]
[1760722707296,0.41100485,3817.4,3817.3,2.61965263]
[1760722708614,0.41100485,3817.4,3817.1,2.61978792]
[1760722708924,0.41100485,3817.4,3817.3,2.61965263]
[1760722709288,0.41100485,3817.4,3815.9,2.62056899]
[1760722709490,0.45667157,3817.4,3817.0,2.61979341]
[1760722709696,0.4415,3817.3,3817.1,2.61978748]
[1760722709890,0.4415,3817.3,3816.3,2.62029647]
[1760722710205,0.45667157,3817.4,3816.4,0.26202965]
[1760722710411,0.45667157,3817.4,3817.1,2.61978908]
[1760722710588,0.89817157,3817.4,3817.1,2.61978908]
[1760722710789,0.48716672,3817.4,3817.2,2.6196715]
[1760722711191,0.04566672,3817.4,3816.1,0.0073]
[1760722711392,0.04566672,3817.4,3815.8,2.62068242]
[1760722711393,0.4415,3817.3,3816.3,2.6202769]
[1760722711617,0.4415,3817.3,3816.9,2.61992474]
[1760722711823,0.4415,3817.2,3816.7,2.62000437]
[1760722712027,0.2313,3816.8,3815.5,2.62083955]
[1760722712236,0.1304,3816.5,3816.0,2.62048415]
[1760722712392,0.4415,3816.4,3815.6,2.62081979]
[1760722712597,0.1304,3816.0,3815.9,2.62058632]
[1760722712826,0.1304,3816.0,3815.9,2.62061374]
[1760722713645,0.0456786,3816.5,3816.4,2.62027041]
[1760722713646,0.1760786,3816.5,3816.4,2.62027041]
[1760722714342,0.0456786,3816.5,3816.4,2.62027041]
[1760722715541,1.728,3817.5,3816.2,2.62035651]
[1760722715697,0.2189,3817.9,3815.2,2.62109069]
[1760722715698,0.04567236,3817.0,3816.9,2.61992716]
[1760722716630,0.04567236,3817.0,3816.0,0.0073]
[1760722716848,0.2313,3816.9,3816.7,2.62005735]
[1760722717195,0.41094972,3817.4,3815.6,2.62080007]
[1760722717526,0.41094972,3817.4,3816.4,2.62023637]
[1760722717728,0.41094972,3817.4,3815.7,0.0073]
[1760722718025,0.4415,3817.3,3816.8,2.61998046]
[1760722718336,0.2313,3816.9,3815.8,2.62068242]
[1760722718495,0.2313,3816.9,3816.5,2.62017151]
[1760722718696,0.4435,3816.8,3815.9,0.26279824]
[1760722718940,0.002,3816.8,3816.7,2.62006445]
[1760722720948,0.4435,3816.8,3815.4,2.62095717]
[1760722721145,0.4435,3816.8,3816.7,2.62006445]
[1760722721557,0.002,3816.8,3816.7,2.62006445]
[1760722722655,0.002,3816.8,3816.4,2.62023831]
[1760722722850,0.002,3816.8,3816.7,2.62006445]
[1760722723928,0.002,3816.8,3815.4,0.0073]
[1760722724130,0.46336863,3816.8,3816.4,2.62021765]
[1760722724380,0.002,3816.8,3816.7,2.62006445]
[1760722724538,0.04566761,3817.7,3817.6,2.61944677]
[1760722724918,0.2313,3818.9,3817.6,2.61944677]
[1760722724919,0.2313,3818.9,3818.5,2.61882938]
[1760722725119,0.002,3819.1,3816.7,1.728]
[1760722725314,0.002,3819.1,3815.9,3.15358841]
[1760722725315,0.2313,3818.8,3818.6,2.6187608]
[1760722725525,0.25116863,3818.8,3818.6,2.6187608]
[1760722725747,0.2313,3818.8,3818.6,2.6187608]
[1760722726249,0.4435,3818.7,3818.6,2.6187608]
[1760722726446,0.4435,3818.7,3817.3,2.61965263]
[1760722726618,0.01986863,3818.6,3817.1,2.61977656]
[1760722726822,0.01986863,3818.6,3817.3,2.61965263]
[1760722727032,0.01986863,3818.6,3818.4,2.61883122]
[1760722727228,0.4435,3818.7,3818.4,2.61889673]
[1760722727428,0.4435,3818.7,3817.3,2.61965263]
[1760722727429,0.4415,3818.6,3818.5,2.61882811]
[1760722727643,0.002,3818.7,3818.4,2.61885271]
[1760722728152,0.4435,3818.7,3818.5,2.6188269]
[1760722728354,0.4435,3818.7,3818.3,2.61895458]
[1760722728355,0.4435,3818.7,3818.4,2.61889598]
[1760722729137,0.4415,3818.6,3817.2,0.26251237]
[1760722729366,0.46136863,3818.6,3818.1,2.61905853]
[1760722729548,2.1695,3818.6,3817.0,0.0053]
[1760722729747,2.18936863,3818.6,3818.1,2.61909705]
[1760722729939,1.72858795,3818.5,3818.1,2.619045]
[1760722730140,1.7742471,3818.5,3818.1,2.619045]
[1760722730462,0.4415,3818.4,3818.0,2.6191441]
[1760722730639,0.4415,3818.3,3818.0,2.61912317]
[1760722730834,1.3327471,3818.5,3818.2,2.61903514]
[1760722731076,0.89798024,3818.5,3818.2,2.61903514]
[1760722731272,0.89798024,3818.5,3818.3,2.61896241]
[1760722731487,0.89798024,3818.5,3817.2,2.61972126]
[1760722731678,0.89798024,3818.5,3818.2,2.61898425]
[1760722731916,0.89798024,3818.5,3817.6,2.61944677]
[1760722732171,1.81790826,3818.5,3818.2,2.61897978]
[1760722732540,0.48136863,3818.4,3817.8,2.61930014]
[1760722732739,0.48136863,3818.4,3817.8,2.61928169]
[1760722733038,0.4615,3818.4,3817.2,2.6196758]
[1760722733265,0.04565915,3818.5,3818.4,2.61889796]
[1760722733949,0.52702778,3818.5,3817.7,2.61931656]
[1760722734162,1.728,3818.3,3816.5,0.0053]
[1760722734360,0.1304,3817.8,3817.7,2.61931872]
[1760722734566,0.1304,3817.8,3817.2,0.1304]
[1760722734874,0.1304,3817.8,3817.4,2.61958386]
[1760722734875,0.1304,3817.5,3817.4,2.61958386]
[1760722735076,0.1304,3817.2,3816.7,0.1304]
[1760722735370,0.4615,3818.4,3816.8,0.0063]
[1760722735546,0.1304,3817.6,3817.5,2.61951538]
[1760722736365,0.1304,3817.6,3817.4,2.61958036]
[1760722736571,0.1304,3817.6,3817.5,2.61951538]
[1760722736917,0.1304,3817.6,3816.9,0.1304]
[1760722737077,0.1304,3817.6,3817.5,2.61951538]
[1760722740412,0.002,3818.5,3817.9,2.61924094]
[1760722740704,0.002,3818.5,3818.4,2.61889796]
[1760722740890,0.1324,3818.5,3818.3,2.61895912]
[1760722741094,0.5939,3818.5,3818.3,2.61895912]
[1760722741291,0.5939,3818.5,3817.7,0.1304]
[1760722741592,0.48136863,3818.4,3816.6,0.0053]
[1760722741792,0.4615,3818.4,3817.8,2.6192462]
[1760722741991,0.1304,3817.8,3817.7,2.61937815]
[1760722742391,0.21915,3818.3,3818.2,2.61903514]
[1760722742392,0.17605778,3818.3,3818.2,2.61903514]
[1760722742909,0.1304,3818.3,3818.2,2.61903514]
[1760722743529,0.002,3818.5,3818.4,2.61889796]
[1760722744396,1.19956533,3818.5,3817.8,0.1304]
[1760722744597,0.01986863,3818.4,3818.0,2.61915112]
[1760722744934,0.1304,3817.9,3817.0,2.61985852]
[1760722745134,0.2173,3817.8,3817.7,2.6193141]
[1760722745699,0.1304,3817.7,3817.6,2.61944677]
[1760722747412,0.5586,3817.7,3816.0,0.0053]
[1760722747715,0.5586,3817.7,3816.9,2.61985924]
[1760722747716,0.1304,3817.4,3816.9,2.61985924]
[1760722748015,0.1304,3817.4,3816.7,2.62000027]
[1760722748016,0.1304,3816.9,3816.3,0.1304]
[1760722748217,0.1304,3816.9,3816.8,2.6209958]
[1760722748725,0.1304,3816.9,3816.8,0.001]
[1760722748726,0.7759,3816.9,3816.8,0.001]
[1760722748898,0.3477,3816.9,3816.8,0.001]
[1760722749212,0.1304,3816.9,3816.8,2.6209958]
[1760722750145,0.1304,3816.9,3816.8,0.001]
[1760722750431,0.5586,3816.9,3816.8,0.001]
[1760722751033,0.5586,3816.9,3816.8,2.6209958]
[1760722751538,0.04566884,3817.2,3817.1,2.61978989]
[1760722751828,0.1304,3817.6,3817.5,2.61951538]
[1760722753038,0.5586,3817.6,3817.5,2.61951538]
[1760722753238,0.1304,3817.6,3817.5,2.61951538]
[1760722753545,0.17606264,3817.7,3817.6,2.61944677]
[1760722753951,0.04566264,3817.7,3817.6,2.97537579]
[1760722754298,0.04566264,3817.7,3817.6,2.61944677]
[1760722754499,0.04766264,3817.7,3817.6,2.61944677]
[1760722757205,0.002,3818.1,3818.0,2.61917234]
[1760722757437,0.002,3818.1,3818.0,2.64536406]
[1760722757637,0.002,3818.1,3818.0,2.78106406]
[1760722757840,0.002,3818.1,3818.0,3.58303375]
[1760722758213,0.002,3818.1,3818.0,3.55684203]
[1760722759946,0.002,3818.1,3818.0,3.55154203]
[1760722760149,0.002,3818.1,3818.0,3.55684203]
[1760722760944,0.002,3818.1,3818.0,3.58303375]
[1760722761144,0.002,3818.1,3818.0,3.55684203]
[1760722761355,0.002,3818.1,3818.0,3.55154203]
[1760722764048,0.002,3818.1,3818.0,2.61917234]
[1760722764049,0.4436,3818.1,3818.0,2.61917234]
[1760722764546,0.002,3818.1,3818.0,2.61917234]
[1760722766149,0.4436,3818.1,3817.9,2.61921503]
[1760722766348,0.4416,3818.0,3817.9,2.61921503]
[1760722767059,0.002,3818.1,3818.0,2.61917234]
[1760722767259,0.4436,3818.1,3818.0,2.61917234]
[1760722767741,0.002,3818.1,3818.0,2.61917234]
[1760722767968,0.1324,3818.1,3818.0,2.61917234]
[1760722768173,0.002,3818.1,3818.0,2.61917234]
[1760722770067,0.4436,3818.1,3816.7,2.62004045]
[1760722770263,0.4436,3818.1,3816.9,3.05483121]
[1760722770577,0.4436,3818.1,3817.8,2.61928335]
[1760722770793,0.4436,3818.1,3816.8,0.001]
[1760722770794,0.222,3817.9,3816.8,0.001]
[1760722770954,0.222,3816.9,3816.8,2.6209958]
[1760722771154,0.6636,3816.9,3816.8,2.6209958]
[1760722771361,0.6636,3816.9,3816.8,0.001]
[1760722771982,0.6636,3816.9,3816.8,2.6209958]
[1760722772348,0.04566854,3817.2,3817.1,2.61978989]
[1760722776096,0.222,3817.9,3817.8,2.61930955]
[1760722776280,0.002,3818.1,3818.0,2.61917234]
[1760722777201,0.002,3818.1,3817.2,2.61971092]
[1760722777202,0.4436,3818.1,3817.2,2.61970699]
[1760722777373,0.222,3818.0,3817.9,2.61924094]
[1760722778202,0.6636,3818.0,3817.9,2.61924094]
[1760722779503,0.002,3818.1,3817.9,2.61924094]
[1760722779504,0.002,3818.1,3818.0,2.61917234]
[1760722782124,0.4436,3818.1,3818.0,2.61917234]
[1760722783617,0.002,3818.1,3818.0,2.61917234]
[1760722790723,0.002,3818.1,3817.9,0.100151]
[1760722790941,0.002,3818.1,3818.0,2.61917234]
[1760722791155,0.002,3818.1,3817.9,2.71939194]
[1760722791156,0.4416,3818.0,3817.9,2.71939194]
[1760722792082,0.002,3818.1,3818.0,2.61917234]
[1760722793012,0.4405,3818.1,3818.0,2.61917234]
[1760722793720,0.4405,3818.1,3817.9,2.71936843]
[1760722793923,0.002,3818.1,3818.0,2.61917234]
[1760722794245,0.002,3818.1,3817.9,2.71936379]
[1760722794451,0.4385,3818.0,3817.9,0.100151]
[1760722794654,0.4385,3818.0,3817.9,2.71939194]
[1760722794946,0.4385,3818.0,3817.9,0.100151]
[1760722795150,0.4385,3818.0,3817.9,2.71939194]
[1760722795347,0.84935612,3818.0,3817.9,2.71939194]
[1760722795646,0.84935612,3818.0,3817.9,0.100151]
[1760722796070,0.41085612,3818.0,3817.9,0.100151]
[1760722796264,0.84935612,3818.0,3817.9,0.100151]
[1760722799657,0.41085612,3818.0,3817.9,2.71939194]
[1760722800248,0.84935612,3818.0,3817.9,0.100151]
[1760722800453,16.39347975,3818.0,3817.9,0.100151]
[1760722800649,1.8584,3817.9,3817.6,0.001]
[1760722800955,2.67814213,3818.0,3817.8,2.61930955]
[1760722801156,0.0456626,3818.0,3817.9,2.61924094]
[1760722803288,0.1760626,3818.0,3817.9,2.61924094]
[1760722803516,0.1760626,3818.0,3817.6,0.001]
[1760722803828,4.811766,3817.7,3817.6,0.001]
[1760722804115,2.0872,3817.7,3817.6,0.001]
[1760722804407,1.728,3817.7,3817.6,0.001]
[1760722804775,2.1612,3817.7,3817.6,0.001]
[1760722805185,1.728,3817.7,3817.6,2.62044677]
[1760722805390,0.002,3818.1,3818.0,2.61917234]
[1760722805709,0.002,3818.1,3818.0,2.64536406]
[1760722805884,0.002,3818.1,3818.0,3.68009681]
[1760722806087,0.41079191,3819.4,3818.4,2.61889796]
[1760722806312,0.41079191,3819.4,3818.8,2.61862365]
[1760722806612,0.41067111,3820.5,3819.7,2.6179685]
[1760722806989,0.41067111,3820.5,3820.4,2.61752696]
[1760722807613,0.2288,3821.4,3821.0,2.61711041]
[1760722807919,0.41056293,3821.2,3820.4,2.61752696]
[1760722808083,0.41056293,3821.2,3820.8,2.61725285]
[1760722808275,0.41056293,3821.2,3820.3,0.1034]
[1760722808471,0.41056293,3821.2,3821.1,2.61704744]
[1760722808702,0.07679121,3821.6,3821.2,2.616959]
[1760722809009,0.07679121,3821.6,3820.3,0.1034]
[1760722809010,0.41049515,3821.6,3821.5,2.61677351]
[1760722809210,1.10390401,3822.1,3821.8,2.6165681]
[1760722809377,1.10390401,3822.1,3821.2,0.1034]
[1760722809572,1.10390401,3822.1,3820.6,0.1034]
[1760722809792,1.10390401,3822.1,3821.8,2.6165681]
[1760722810289,1.10390401,3822.1,3821.8,2.7199681]
[1760722811803,1.10390401,3822.1,3821.8,2.74613378]
[1760722812152,1.10390401,3822.1,3821.8,2.6165681]
[1760722812594,1.10390401,3822.1,3821.7,2.61663073]
[1760722812917,1.10390401,3822.1,3821.0,0.1034]
[1760722812918,0.4332,3821.8,3821.0,2.61705236]
[1760722813215,0.4332,3821.8,3821.1,2.61704744]
[1760722813407,0.4332,3821.8,3820.3,0.2068]
[1760722813596,0.4332,3821.8,3820.9,2.61712598]
[1760722813796,0.35537148,3821.7,3821.0,2.61710396]
[1760722813999,0.4332,3821.6,3820.9,2.61718263]
[1760722814194,0.4332,3821.6,3820.3,0.12957595]
[1760722814399,0.4332,3821.6,3820.4,2.61752696]
[1760722814626,0.4332,3821.6,3821.1,2.61700708]
[1760722814791,0.4332,3821.5,3820.8,2.61718592]
[1760722814985,0.4332,3821.5,3820.3,0.1034]
[1760722815195,0.4332,3821.5,3821.0,2.61704846]
[1760722815394,0.4332,3821.5,3821.1,2.61703468]
[1760722815605,0.45306863,3821.4,3820.0,0.1034]
[1760722815822,0.4332,3821.4,3820.7,2.61728155]
[1760722816116,0.1304,3820.9,3820.6,2.61738601]
[1760722816283,0.1304,3820.9,3820.8,2.61725293]
[1760722816490,0.1304,3821.6,3820.8,0.68003516]
[1760722816684,0.1304,3821.6,3821.5,2.61677351]
[1760722817208,0.5636,3821.6,3820.8,0.1304]
[1760722817517,0.5636,3821.6,3820.9,2.61712179]
[1760722817518,0.1304,3821.3,3820.9,2.61712179]
[1760722817719,0.4332,3821.2,3820.6,0.1304]
[1760722817921,0.4332,3821.2,3820.7,2.61726992]
[1760722818123,0.2288,3820.8,3820.6,0.1304]
[1760722818289,0.2288,3820.8,3820.0,0.1034]
[1760722818290,0.41049633,3821.5,3820.0,0.1034]
[1760722818526,0.41049633,3821.5,3820.0,2.72119219]
[1760722818735,0.41049633,3821.5,3820.7,2.61725867]
[1760722818963,0.2288,3820.8,3820.2,2.61761557]
[1760722819172,0.4332,3820.7,3820.5,2.61740875]
[1760722819325,0.2288,3820.8,3820.5,2.61740875]
[1760722819528,0.4332,3821.5,3819.9,0.1034]
[1760722819830,0.41056061,3821.1,3820.8,2.61723381]
[1760722820064,0.41056061,3821.1,3820.7,2.61731194]
[1760722820263,0.41056061,3821.1,3820.9,2.61718286]
[1760722820462,0.41056061,3821.1,3819.9,0.12957869]
[1760722820767,0.41056061,3821.1,3821.0,2.61711593]
[1760722821131,0.41056061,3821.1,3820.0,2.61778087]
[1760722821327,0.41056061,3821.1,3820.5,2.61741238]
[1760722821328,0.84376061,3821.1,3820.5,2.61741238]
[1760722821631,0.2261,3820.6,3819.1,0.1034]
[1760722821834,0.2261,3819.2,3818.4,0.1034]
[1760722822649,0.4401,3819.1,3818.1,0.1034]
[1760722822849,0.4401,3819.1,3818.2,2.61902273]
[1760722822850,0.2261,3818.5,3818.2,2.61902273]
[1760722823175,0.2261,3818.5,3817.6,0.001]
[1760722823176,0.45996863,3818.4,3817.6,0.001]
[1760722823469,0.2261,3817.7,3817.6,0.001]
[1760722823681,0.4401,3818.4,3817.7,2.61937732]
[1760722823826,0.4401,3818.4,3817.6,0.001]
[1760722824349,0.4401,3818.4,3817.6,2.62043135]
[1760722824564,0.4401,3818.4,3818.0,2.61910842]
[1760722824762,0.4401,3818.3,3817.6,0.001]
[1760722825466,0.4401,3818.3,3817.6,2.62043157]
[1760722826045,0.4401,3818.3,3818.0,0.001]
[1760722826239,0.41086475,3818.2,3818.0,0.001]
[1760722826547,0.85096475,3818.2,3818.0,0.001]
[1760722826858,0.4401,3818.1,3818.0,0.001]
[1760722827630,0.41086475,3818.2,3818.0,0.001]
[1760722827839,17.44322363,3818.1,3818.0,0.001]
[1760722828138,10.176613,3817.9,3817.6,0.001]
[1760722828338,1.728,3817.7,3817.6,0.001]
[1760722828669,4.162953,3817.7,3817.6,0.001]
[1760722828832,2.1681,3817.7,3817.6,0.001]
[1760722829170,2.79584202,3817.7,3817.6,0.001]
[1760722829745,2.13893202,3817.7,3817.6,0.001]
[1760722830460,2.57903202,3817.7,3817.6,0.001]
[1760722830658,2.13893202,3817.7,3817.6,0.001]
[1760722830863,0.2290863,3819.2,3817.6,0.1054]
[1760722830864,0.2261,3818.8,3817.6,0.1054]
[1760722831067,0.1304,3817.9,3817.8,2.61930955]
[1760722831228,0.04565743,3818.3,3818.2,2.61903514]
[1760722831429,0.002,3819.2,3819.1,2.61841795]
[1760722831760,0.002,3819.2,3819.1,2.72281795]
[1760722832065,1e-08,3819.6,3819.5,2.61814373]
[1760722832276,1e-08,3819.6,3819.5,2.64432516]
[1760722832569,1e-08,3819.6,3819.5,2.74872516]
[1760722832935,1e-08,3819.6,3819.5,2.72254373]
[1760722833162,1e-08,3819.6,3819.5,2.74872516]
[1760722833328,1e-08,3819.6,3819.5,4.85759534]
[1760722833965,1e-08,3819.6,3819.5,4.88377677]
[1760722834359,1e-08,3819.6,3819.5,4.85759534]
[1760722834556,1e-08,3819.6,3819.5,4.75319534]
[1760722834758,1e-08,3819.6,3819.5,2.61814373]
[1760722836649,1e-08,3819.6,3819.5,2.64432516]
[1760722837194,1e-08,3819.6,3819.5,4.37232516]
[1760722837469,1e-08,3819.6,3819.5,2.61814373]
[1760722839380,1e-08,3819.6,3817.7,2.61932682]
[1760722839381,0.44010001,3819.6,3817.7,2.61932682]
[1760722839576,0.44010001,3819.6,3819.1,2.61837066]
[1760722839879,0.4401,3819.5,3818.8,2.61861511]
[1760722840057,0.2261,3818.9,3818.8,2.61862365]
[1760722840247,0.4401,3819.5,3818.0,2.72357234]
[1760722840578,0.4401,3819.5,3818.3,2.6189585]
[1760722840775,0.4401,3819.5,3819.1,2.61837078]
[1760722840943,0.4401,3819.4,3819.1,2.61837078]
[1760722841144,0.4401,3819.4,3818.1,0.3586776]
[1760722841377,0.4401,3819.4,3819.3,2.61828083]
[1760722841674,0.4401,3819.4,3819.2,2.61830135]
[1760722841878,0.1304,3819.1,3819.0,2.61841845]
[1760722842076,0.4401,3819.1,3817.7,2.61937815]
[1760722842244,0.01986863,3819.0,3817.8,0.27247782]
[1760722842445,0.6662,3818.9,3817.8,2.61929595]
[1760722842677,0.6662,3818.9,3818.5,2.61876898]
[1760722842845,0.4401,3818.8,3818.6,2.61875361]
[1760722843051,0.4401,3818.7,3818.4,2.61883653]
[1760722843269,0.4401,3818.7,3818.6,2.6187608]
[1760722843577,0.2261,3818.9,3818.8,2.61862365]
[1760722844474,0.04564257,3819.0,3818.7,0.001]
[1760722844699,0.04564257,3819.0,3818.9,2.61855508]
[1760722844875,0.04564257,3819.0,3818.7,2.61966265]
[1760722845178,0.6662,3818.9,3818.8,2.61862365]
[1760722845680,0.04564257,3819.0,3818.9,2.61855508]
[1760722845853,0.4401,3819.4,3819.0,2.61844866]
[1760722846053,0.4401,3819.4,3818.7,0.001]
[1760722846274,1e-08,3819.6,3819.2,2.6183195]
[1760722846482,1e-08,3819.6,3819.3,2.61827423]
[1760722846651,1e-08,3819.6,3818.7,0.001]
[1760722847006,1e-08,3819.6,3819.5,2.61814373]